[Event "*** Titled Tuesday Blitz"]
[Site "Chess.com"]
[Date "2020.11.03"]
[Round "11"]
[White "xberli"]
[Black "PavlovDanila"]
[Result "0-1"]
[WhiteElo "2536"]
[BlackElo "2680"]
[TimeControl "180+1"]
[EndTime "12:11:23 PST"]
[Termination "PavlovDanila won by resignation"]

1. e4 {[%clk 0:03:00.9]} 1... e6 {[%clk 0:02:57.4]} 2. d4 {[%clk 0:03:00.5]}
2... d5 {[%clk 0:02:57]} 3. Nc3 {[%clk 0:03:01.1]} 3... Nf6 {[%clk 0:02:56.8]}
4. e5 {[%clk 0:03:01.4]} 4... Nfd7 {[%clk 0:02:56.9]} 5. f4 {[%clk 0:03:01.9]}
5... c5 {[%clk 0:02:57.4]} 6. Nf3 {[%clk 0:03:02.5]} 6... Nc6 {[%clk 0:02:58]}
7. Be3 {[%clk 0:03:02.1]} 7... cxd4 {[%clk 0:02:58.7]} 8. Nxd4 {[%clk 0:03:03]}
8... Bc5 {[%clk 0:02:58.9]} 9. Qd2 {[%clk 0:03:01.3]} 9... O-O {[%clk
0:02:58.5]} 10. O-O-O {[%clk 0:03:01]} 10... a6 {[%clk 0:02:56.6]} 11. Qf2
{[%clk 0:03:00.7]} 11... Nxd4 {[%clk 0:02:56.7]} 12. Bxd4 {[%clk 0:03:01.6]}
12... Qe7 {[%clk 0:02:57]} 13. Bd3 {[%clk 0:02:53.7]} 13... b5 {[%clk
0:02:55.7]} 14. Ne2 {[%clk 0:02:51]} 14... Bb7 {[%clk 0:02:54.2]} 15. Kb1 {[%clk
0:02:49.9]} 15... Rac8 {[%clk 0:02:51.2]} 16. h4 {[%clk 0:02:32.9]} 16... Bxd4
{[%clk 0:02:49.9]} 17. Nxd4 {[%clk 0:02:30.8]} 17... Nc5 {[%clk 0:02:50.2]} 18.
h5 {[%clk 0:02:28.6]} 18... Ne4 {[%clk 0:02:48.1]} 19. Qe3 {[%clk 0:02:08.6]}
19... f6 {[%clk 0:02:46]} 20. h6 {[%clk 0:01:49.9]} 20... g6 {[%clk 0:02:44.9]}
21. Nf3 {[%clk 0:01:39.1]} 21... Qb4 {[%clk 0:01:41.2]} 22. Bxe4 {[%clk
0:01:07.9]} 22... Qxe4 {[%clk 0:01:32.7]} 23. Qxe4 {[%clk 0:01:00.2]} 23... dxe4
{[%clk 0:01:33.6]} 24. Nd4 {[%clk 0:00:52.4]} 24... fxe5 {[%clk 0:01:28.8]} 25.
Nxe6 {[%clk 0:00:26.6]} 25... Rf6 {[%clk 0:00:44]} 26. Ng5 {[%clk 0:00:15.4]}
26... Bc6 {[%clk 0:00:33.1]} 27. fxe5 {[%clk 0:00:12.1]} 27... Rf5 {[%clk
0:00:33.3]} 28. Ne6 {[%clk 0:00:07.5]} 28... Rxe5 {[%clk 0:00:33.3]} 29. Nd4
{[%clk 0:00:07.3]} 29... Bd5 {[%clk 0:00:31]} 30. Ne2 {[%clk 0:00:07.4]} 30...
e3 {[%clk 0:00:29.8]} 31. b3 {[%clk 0:00:07.3]} 31... Bxg2 {[%clk 0:00:29.7]}
32. Rh2 {[%clk 0:00:06.5]} 32... Bf3 {[%clk 0:00:29.3]} 33. Rd7 {[%clk
0:00:05.8]} 33... Bxe2 {[%clk 0:00:23.8]} 34. Rxe2 {[%clk 0:00:06.7]} 34... Rf8
{[%clk 0:00:23.9]} 35. Rg7+ {[%clk 0:00:06.5]} 35... Kh8 {[%clk 0:00:24.2]} 36.
Kc1 {[%clk 0:00:05]} 36... Rf1+ {[%clk 0:00:22.2]} 37. Kb2 {[%clk 0:00:04.2]}
37... Rf2 {[%clk 0:00:21]} 38. Rd7 {[%clk 0:00:04]} 38... Kg8 {[%clk 0:00:14.6]}
39. Re1 {[%clk 0:00:04.1]} 39... Rf7 {[%clk 0:00:11.8]} 40. Rd8+ {[%clk
0:00:02.9]} 40... Rf8 {[%clk 0:00:12.4]} 41. Rd7 {[%clk 0:00:03.3]} 41... e2
{[%clk 0:00:12.8]} 42. Rd2 {[%clk 0:00:02.6]} 42... Rf2 {[%clk 0:00:11.5]} 43.
c4 {[%clk 0:00:02.1]} 43... bxc4 {[%clk 0:00:11.4]} 44. bxc4 {[%clk 0:00:03]}
44... Kf7 {[%clk 0:00:11.4]} 45. Kc3 {[%clk 0:00:03.5]} 45... Kf6 {[%clk
0:00:10.3]} 46. Kd3 {[%clk 0:00:03.7]} 46... Kg5 {[%clk 0:00:10.3]} 47. c5
{[%clk 0:00:03.8]} 47... Rxc5 {[%clk 0:00:10.3]} 48. Rdxe2 {[%clk 0:00:04.1]}
48... Rxe2 {[%clk 0:00:10.9]} 49. Rxe2 {[%clk 0:00:05]} 49... Kxh6 {[%clk
0:00:11.6]} 50. Kd4 {[%clk 0:00:05.3]} 50... Ra5 {[%clk 0:00:11.8]} 51. Kc4
{[%clk 0:00:05.6]} 51... g5 {[%clk 0:00:11]} 52. Kb4 {[%clk 0:00:06.1]} 52...
Rb5+ {[%clk 0:00:10.2]} 53. Kc4 {[%clk 0:00:06.4]} 53... Rb6 {[%clk 0:00:10.6]}
54. a4 {[%clk 0:00:06.2]} 54... g4 {[%clk 0:00:10.6]} 55. a5 {[%clk 0:00:06.5]}
55... Rg6 {[%clk 0:00:11]} 56. Rh2+ {[%clk 0:00:04.8]} 56... Kg7 {[%clk
0:00:10.6]} 57. Rb2 {[%clk 0:00:05]} 57... h5 {[%clk 0:00:10.7]} 58. Rb7+ {[%clk
0:00:05.9]} 58... Kh6 {[%clk 0:00:11.2]} 59. Rb6 {[%clk 0:00:06.8]} 59... g3
{[%clk 0:00:10.9]} 60. Rb1 {[%clk 0:00:06.2]} 60... g2 {[%clk 0:00:10.6]} 0-1

[Event "*** Titled Tuesday Blitz"]
[Site "Chess.com"]
[Date "2020.11.03"]
[Round "11"]
[White "juancruzarias"]
[Black "vanea_03"]
[Result "1-0"]
[WhiteElo "2563"]
[BlackElo "2708"]
[TimeControl "180+1"]
[EndTime "12:11:27 PST"]
[Termination "juancruzarias won by resignation"]

1. e4 {[%clk 0:03:00.9]} 1... e5 {[%clk 0:02:59.7]} 2. Nc3 {[%clk 0:03:00.2]}
2... Nf6 {[%clk 0:02:59.6]} 3. Nf3 {[%clk 0:03:00]} 3... Nc6 {[%clk 0:02:59.5]}
4. d4 {[%clk 0:02:59.5]} 4... exd4 {[%clk 0:02:59.6]} 5. Nxd4 {[%clk 0:03:00.4]}
5... Bb4 {[%clk 0:02:59.9]} 6. Nxc6 {[%clk 0:03:00.2]} 6... bxc6 {[%clk
0:02:58.5]} 7. Bd3 {[%clk 0:03:00.7]} 7... O-O {[%clk 0:02:57.3]} 8. O-O {[%clk
0:02:59.9]} 8... Re8 {[%clk 0:02:57.8]} 9. Bg5 {[%clk 0:02:57.1]} 9... h6 {[%clk
0:02:56.5]} 10. Bh4 {[%clk 0:02:56.2]} 10... g5 {[%clk 0:02:56.6]} 11. Bg3
{[%clk 0:02:54.8]} 11... Bxc3 {[%clk 0:02:57.1]} 12. bxc3 {[%clk 0:02:54.6]}
12... Nxe4 {[%clk 0:02:58]} 13. Qh5 {[%clk 0:02:24.6]} 13... d6 {[%clk
0:02:56.9]} 14. Qxh6 {[%clk 0:02:20.8]} 14... Bf5 {[%clk 0:02:51.6]} 15. Rae1
{[%clk 0:02:09]} 15... Re6 {[%clk 0:02:41.2]} 16. Qh5 {[%clk 0:02:00.3]} 16...
Bg6 {[%clk 0:02:05.7]} 17. Qh3 {[%clk 0:01:57.3]} 17... Qf6 {[%clk 0:01:56.4]}
18. f4 {[%clk 0:01:55.8]} 18... Nxg3 {[%clk 0:01:52.2]} 19. Qxg3 {[%clk
0:01:47.2]} 19... Rxe1 {[%clk 0:01:49.9]} 20. Rxe1 {[%clk 0:01:32.9]} 20... gxf4
{[%clk 0:01:39.4]} 21. Qg4 {[%clk 0:01:27]} 21... Kf8 {[%clk 0:01:08.4]} 22.
Bxg6 {[%clk 0:01:21.6]} 22... Qxg6 {[%clk 0:01:06.9]} 23. Qxf4 {[%clk
0:01:18.3]} 23... Rb8 {[%clk 0:00:51.1]} 24. Qd4 {[%clk 0:01:08.2]} 24... Qg7
{[%clk 0:00:30]} 25. Qxa7 {[%clk 0:01:04.4]} 25... Re8 {[%clk 0:00:21.2]} 26.
Rxe8+ {[%clk 0:01:02.3]} 26... Kxe8 {[%clk 0:00:22.1]} 27. Qe3+ {[%clk
0:00:52.2]} 27... Kd7 {[%clk 0:00:19.4]} 28. a4 {[%clk 0:00:41.9]} 28... c5
{[%clk 0:00:17.7]} 29. h4 {[%clk 0:00:27.5]} 29... Qg6 {[%clk 0:00:15.2]} 30.
Qf3 {[%clk 0:00:23.1]} 30... Qxc2 {[%clk 0:00:11.2]} 31. Qxf7+ {[%clk
0:00:22.7]} 31... Kc6 {[%clk 0:00:10.5]} 32. Qc4 {[%clk 0:00:21.5]} 32... d5
{[%clk 0:00:07.3]} 33. Qa6+ {[%clk 0:00:19]} 33... Kd7 {[%clk 0:00:07.7]} 34.
Qb5+ {[%clk 0:00:18.9]} 34... Kd6 {[%clk 0:00:06.6]} 35. Qa6+ {[%clk 0:00:18.6]}
35... Kd7 {[%clk 0:00:06.8]} 36. Qf6 {[%clk 0:00:13.3]} 36... Qd1+ {[%clk
0:00:05.5]} 37. Kh2 {[%clk 0:00:13.4]} 37... d4 {[%clk 0:00:06.2]} 38. Qf5+
{[%clk 0:00:11.6]} 38... Kd6 {[%clk 0:00:05.1]} 39. Qf6+ {[%clk 0:00:11.7]}
39... Kd7 {[%clk 0:00:03.2]} 40. a5 {[%clk 0:00:08.9]} 40... d3 {[%clk
0:00:02.8]} 41. a6 {[%clk 0:00:08.6]} 41... d2 {[%clk 0:00:03.3]} 42. Qf5+
{[%clk 0:00:07]} 42... Kd6 {[%clk 0:00:02.1]} 43. Qd3+ {[%clk 0:00:06.6]} 43...
Kc6 {[%clk 0:00:02.4]} 44. a7 {[%clk 0:00:06.5]} 44... Qa4 {[%clk 0:00:02.6]}
45. Qxd2 {[%clk 0:00:05.9]} 45... Qxa7 {[%clk 0:00:03]} 46. Qh6+ {[%clk
0:00:05.7]} 46... Kb5 {[%clk 0:00:03.5]} 47. h5 {[%clk 0:00:06]} 47... Kc4
{[%clk 0:00:03.9]} 48. Qf6 {[%clk 0:00:05.6]} 48... Qa2 {[%clk 0:00:02.3]} 49.
h6 {[%clk 0:00:05.6]} 49... Qe2 {[%clk 0:00:02.8]} 50. Kh3 {[%clk 0:00:03.8]}
50... Qh5+ {[%clk 0:00:02.8]} 51. Qh4+ {[%clk 0:00:03.8]} 51... Qxh4+ {[%clk
0:00:03.2]} 52. Kxh4 {[%clk 0:00:04.7]} 52... Kxc3 {[%clk 0:00:03.6]} 53. h7
{[%clk 0:00:05.5]} 53... c4 {[%clk 0:00:04]} 54. h8=Q+ {[%clk 0:00:06.4]} 54...
Kd2 {[%clk 0:00:04.5]} 55. Qb2+ {[%clk 0:00:06.6]} 55... Kd3 {[%clk 0:00:04.3]}
56. Qc1 {[%clk 0:00:06.9]} 56... c3 {[%clk 0:00:04.7]} 57. g4 {[%clk 0:00:07.8]}
1-0

[Event "*** Titled Tuesday Blitz"]
[Site "Chess.com"]
[Date "2020.11.03"]
[Round "11"]
[White "zmeeed67"]
[Black "ChSalas"]
[Result "0-1"]
[WhiteElo "2379"]
[BlackElo "2516"]
[TimeControl "180+1"]
[EndTime "12:11:27 PST"]
[Termination "ChSalas won by resignation"]

1. e4 {[%clk 0:03:00.9]} 1... e5 {[%clk 0:02:58.4]} 2. Nf3 {[%clk 0:03:00.3]}
2... Nc6 {[%clk 0:02:56.6]} 3. c3 {[%clk 0:03:00.4]} 3... Nf6 {[%clk 0:02:50]}
4. d4 {[%clk 0:03:00.1]} 4... exd4 {[%clk 0:02:40.7]} 5. e5 {[%clk 0:02:59.6]}
5... Ne4 {[%clk 0:02:38.7]} 6. cxd4 {[%clk 0:02:58.6]} 6... d5 {[%clk
0:02:37.8]} 7. a3 {[%clk 0:02:53.9]} 7... Be7 {[%clk 0:02:27.7]} 8. Be2 {[%clk
0:02:53.9]} 8... O-O {[%clk 0:02:26.9]} 9. O-O {[%clk 0:02:53.9]} 9... Be6
{[%clk 0:02:20]} 10. Nc3 {[%clk 0:02:45.6]} 10... Nxc3 {[%clk 0:02:14.7]} 11.
bxc3 {[%clk 0:02:45.2]} 11... f6 {[%clk 0:02:13.2]} 12. exf6 {[%clk 0:02:21.9]}
12... Bxf6 {[%clk 0:02:10.2]} 13. Re1 {[%clk 0:02:18.3]} 13... Re8 {[%clk
0:02:07.7]} 14. Rb1 {[%clk 0:02:12.2]} 14... Na5 {[%clk 0:01:37.8]} 15. Bd3
{[%clk 0:02:11.3]} 15... Bf7 {[%clk 0:01:27.5]} 16. Be3 {[%clk 0:02:02.9]} 16...
b6 {[%clk 0:01:21.7]} 17. Qc2 {[%clk 0:01:54.5]} 17... g6 {[%clk 0:01:03.8]} 18.
Bf4 {[%clk 0:01:48]} 18... Rxe1+ {[%clk 0:00:58.9]} 19. Rxe1 {[%clk 0:01:47.3]}
19... Nc4 {[%clk 0:00:58.9]} 20. a4 {[%clk 0:01:32.8]} 20... Qd7 {[%clk
0:00:55.6]} 21. Bxc4 {[%clk 0:01:24.6]} 21... dxc4 {[%clk 0:00:54.7]} 22. Ne5
{[%clk 0:01:18]} 22... Re8 {[%clk 0:00:49.7]} 23. Re3 {[%clk 0:01:02.6]} 23...
Qd5 {[%clk 0:00:29]} 24. h3 {[%clk 0:00:49.9]} 24... c5 {[%clk 0:00:27]} 25.
Nxf7 {[%clk 0:00:46.2]} 25... Kxf7 {[%clk 0:00:25.8]} 26. Rxe8 {[%clk
0:00:41.9]} 26... Kxe8 {[%clk 0:00:26.7]} 27. dxc5 {[%clk 0:00:38.9]} 27... Qxc5
{[%clk 0:00:23.3]} 28. Qe4+ {[%clk 0:00:37.7]} 28... Qe7 {[%clk 0:00:15.8]} 29.
Qxc4 {[%clk 0:00:29.9]} 29... Qe1+ {[%clk 0:00:15.7]} 30. Kh2 {[%clk 0:00:28.2]}
30... Qxf2 {[%clk 0:00:15.7]} 31. Bg3 {[%clk 0:00:21]} 31... Qf5 {[%clk
0:00:12.3]} 32. Qc6+ {[%clk 0:00:18.6]} 32... Kf7 {[%clk 0:00:10.7]} 33. c4
{[%clk 0:00:18.4]} 33... Qe6 {[%clk 0:00:10.1]} 34. Qc7+ {[%clk 0:00:17.7]}
34... Qe7 {[%clk 0:00:10.4]} 35. Qf4 {[%clk 0:00:16.3]} 35... Kg7 {[%clk
0:00:10.4]} 36. Qf3 {[%clk 0:00:11.7]} 36... h6 {[%clk 0:00:10.9]} 37. Qd5
{[%clk 0:00:10.9]} 37... g5 {[%clk 0:00:10.5]} 38. Bd6 {[%clk 0:00:10.7]} 38...
Qf7 {[%clk 0:00:10.6]} 39. Qe4 {[%clk 0:00:06.8]} 39... Qd7 {[%clk 0:00:10]} 40.
Be5 {[%clk 0:00:05.6]} 40... Qe7 {[%clk 0:00:10.1]} 41. Bxf6+ {[%clk 0:00:05.1]}
41... Qxf6 {[%clk 0:00:11]} 42. Qb7+ {[%clk 0:00:04.9]} 42... Qf7 {[%clk
0:00:11.2]} 43. Qe4 {[%clk 0:00:05]} 43... Qf4+ {[%clk 0:00:11.4]} 44. Qxf4
{[%clk 0:00:05]} 44... gxf4 {[%clk 0:00:12.3]} 45. Kg1 {[%clk 0:00:04.9]} 45...
Kf6 {[%clk 0:00:12.2]} 46. Kf2 {[%clk 0:00:05.5]} 46... Ke5 {[%clk 0:00:12.7]}
47. Kf3 {[%clk 0:00:05.7]} 47... Kf5 {[%clk 0:00:12.5]} 48. g3 {[%clk
0:00:01.1]} 48... fxg3 {[%clk 0:00:12.6]} 49. Kxg3 {[%clk 0:00:01.4]} 49... Ke4
{[%clk 0:00:11.1]} 50. Kg4 {[%clk 0:00:01.3]} 50... Kd4 {[%clk 0:00:10.4]} 51.
Kh5 {[%clk 0:00:01.4]} 51... Kxc4 {[%clk 0:00:11.3]} 52. Kxh6 {[%clk 0:00:01.7]}
52... a6 {[%clk 0:00:12.2]} 53. Kg7 {[%clk 0:00:02]} 53... b5 {[%clk 0:00:13.1]}
54. h4 {[%clk 0:00:02.5]} 54... bxa4 {[%clk 0:00:12.7]} 55. h5 {[%clk
0:00:02.5]} 55... a3 {[%clk 0:00:13.6]} 56. h6 {[%clk 0:00:02]} 56... a2 {[%clk
0:00:14.5]} 57. h7 {[%clk 0:00:02.5]} 57... a1=Q+ {[%clk 0:00:15.4]} 58. Kg8
{[%clk 0:00:03]} 58... a5 {[%clk 0:00:15.9]} 59. h8=Q {[%clk 0:00:03]} 59...
Qxh8+ {[%clk 0:00:15.9]} 60. Kxh8 {[%clk 0:00:03.6]} 60... a4 {[%clk 0:00:16.8]}
0-1

[Event "*** Titled Tuesday Blitz"]
[Site "Chess.com"]
[Date "2020.11.03"]
[Round "11"]
[White "Loy_Konstantin"]
[Black "paulrusan"]
[Result "1-0"]
[WhiteElo "2382"]
[BlackElo "2209"]
[TimeControl "180+1"]
[EndTime "12:11:30 PST"]
[Termination "Loy_Konstantin won on time"]

1. e4 {[%clk 0:03:00.9]} 1... g6 {[%clk 0:02:49]} 2. d4 {[%clk 0:03:00.5]} 2...
Bg7 {[%clk 0:02:49.1]} 3. Nc3 {[%clk 0:03:01]} 3... d6 {[%clk 0:02:49.1]} 4. f4
{[%clk 0:03:01.3]} 4... a6 {[%clk 0:02:48.8]} 5. a4 {[%clk 0:03:00.2]} 5... Nc6
{[%clk 0:02:47.5]} 6. Nf3 {[%clk 0:03:00.1]} 6... Bg4 {[%clk 0:02:46.6]} 7. Be3
{[%clk 0:03:00.5]} 7... Bxf3 {[%clk 0:02:44]} 8. gxf3 {[%clk 0:02:59.5]} 8...
Nf6 {[%clk 0:02:32.5]} 9. Qd2 {[%clk 0:02:59.2]} 9... Nd7 {[%clk 0:02:31.9]} 10.
f5 {[%clk 0:02:52.2]} 10... gxf5 {[%clk 0:02:25.9]} 11. Rg1 {[%clk 0:02:50.5]}
11... Bf6 {[%clk 0:02:21]} 12. exf5 {[%clk 0:02:42.7]} 12... b5 {[%clk 0:01:56]}
13. axb5 {[%clk 0:02:34.4]} 13... axb5 {[%clk 0:01:55.7]} 14. Rxa8 {[%clk
0:02:33.4]} 14... Qxa8 {[%clk 0:01:55.6]} 15. Bxb5 {[%clk 0:02:28.4]} 15... Nb4
{[%clk 0:01:44.5]} 16. Ke2 {[%clk 0:02:04.1]} 16... c6 {[%clk 0:01:41.2]} 17.
Bd3 {[%clk 0:01:58.9]} 17... Nb6 {[%clk 0:01:37.1]} 18. Ne4 {[%clk 0:01:55.1]}
18... Nxd3 {[%clk 0:01:33.5]} 19. Nxf6+ {[%clk 0:01:43.6]} 19... exf6 {[%clk
0:01:33.2]} 20. Qxd3 {[%clk 0:01:43.9]} 20... Nd5 {[%clk 0:01:29.8]} 21. c4
{[%clk 0:01:38.5]} 21... Nxe3 {[%clk 0:01:27.6]} 22. Qxe3+ {[%clk 0:01:38.3]}
22... Kd7 {[%clk 0:01:25.3]} 23. Kf2 {[%clk 0:01:24.9]} 23... Re8 {[%clk
0:01:24.5]} 24. Qd2 {[%clk 0:01:22.4]} 24... Qa6 {[%clk 0:01:22.7]} 25. Rc1
{[%clk 0:01:14.1]} 25... Qa4 {[%clk 0:01:10.8]} 26. c5 {[%clk 0:01:03.8]} 26...
d5 {[%clk 0:01:08.3]} 27. Qf4 {[%clk 0:00:55.3]} 27... Re5 {[%clk 0:00:59.8]}
28. Kg3 {[%clk 0:00:47.9]} 28... Re2 {[%clk 0:00:56.8]} 29. Qd6+ {[%clk
0:00:45.9]} 29... Kc8 {[%clk 0:00:57]} 30. Qf8+ {[%clk 0:00:38.4]} 30... Kb7
{[%clk 0:00:54.8]} 31. Qxf7+ {[%clk 0:00:38.9]} 31... Ka6 {[%clk 0:00:54.2]} 32.
Qxf6 {[%clk 0:00:38]} 32... Kb5 {[%clk 0:00:49.8]} 33. Qh8 {[%clk 0:00:29.8]}
33... Kb4 {[%clk 0:00:29.1]} 34. Qb8+ {[%clk 0:00:28.6]} 34... Qb5 {[%clk
0:00:29.4]} 35. Qxb5+ {[%clk 0:00:28.4]} 35... Kxb5 {[%clk 0:00:29.6]} 36. f6
{[%clk 0:00:28.5]} 36... Re6 {[%clk 0:00:29]} 37. f4 {[%clk 0:00:23]} 37... Rxf6
{[%clk 0:00:29.3]} 38. Re1 {[%clk 0:00:23.1]} 38... Kc4 {[%clk 0:00:28.9]} 39.
Rd1 {[%clk 0:00:22.3]} 39... Re6 {[%clk 0:00:27]} 40. Kg4 {[%clk 0:00:21.7]}
40... Re4 {[%clk 0:00:23.8]} 41. Kg5 {[%clk 0:00:20.5]} 41... Re2 {[%clk
0:00:11.8]} 42. h4 {[%clk 0:00:19.4]} 42... Rxb2 {[%clk 0:00:11.4]} 43. f5
{[%clk 0:00:19.3]} 43... Rf2 {[%clk 0:00:11]} 44. Kf6 {[%clk 0:00:16.2]} 44...
h5 {[%clk 0:00:10.1]} 45. Ke6 {[%clk 0:00:15.4]} 45... Re2+ {[%clk 0:00:09.6]}
46. Kd6 {[%clk 0:00:15.4]} 46... Rf2 {[%clk 0:00:09.6]} 47. Ke6 {[%clk
0:00:15.3]} 47... Re2+ {[%clk 0:00:09.5]} 48. Kf7 {[%clk 0:00:15.5]} 48... Rh2
{[%clk 0:00:07.6]} 49. f6 {[%clk 0:00:15.2]} 49... Rxh4 {[%clk 0:00:07.8]} 50.
Kg6 {[%clk 0:00:15.7]} 50... Rf4 {[%clk 0:00:07]} 51. f7 {[%clk 0:00:14.8]}
51... h4 {[%clk 0:00:06.8]} 52. Kg7 {[%clk 0:00:14]} 52... h3 {[%clk 0:00:06.7]}
53. f8=Q {[%clk 0:00:14]} 53... Rxf8 {[%clk 0:00:06.2]} 54. Kxf8 {[%clk
0:00:14.9]} 54... h2 {[%clk 0:00:06.1]} 55. Ke7 {[%clk 0:00:13.3]} 55... h1=Q
{[%clk 0:00:05.8]} 56. Rxh1 {[%clk 0:00:13.2]} 56... Kxd4 {[%clk 0:00:06.3]} 57.
Kd6 {[%clk 0:00:14]} 57... Kc4 {[%clk 0:00:04.1]} 58. Kxc6 {[%clk 0:00:14.1]}
58... d4 {[%clk 0:00:04.6]} 59. Kd6 {[%clk 0:00:14.6]} 59... d3 {[%clk
0:00:04.8]} 60. c6 {[%clk 0:00:15.5]} 60... d2 {[%clk 0:00:04.9]} 61. c7 {[%clk
0:00:15.4]} 61... Kd3 {[%clk 0:00:05.7]} 62. Rd1 {[%clk 0:00:14.9]} 1-0

[Event "*** Titled Tuesday Blitz"]
[Site "Chess.com"]
[Date "2020.11.03"]
[Round "11"]
[White "DinaBelenkaya"]
[Black "Michaelson_11"]
[Result "0-1"]
[WhiteElo "2315"]
[BlackElo "2161"]
[TimeControl "180+1"]
[EndTime "12:11:32 PST"]
[Termination "Michaelson_11 won on time"]

1. e4 {[%clk 0:03:00.9]} 1... c5 {[%clk 0:02:59.8]} 2. b4 {[%clk 0:03:00]} 2...
cxb4 {[%clk 0:02:59.2]} 3. a3 {[%clk 0:02:59.4]} 3... Nc6 {[%clk 0:02:56.6]} 4.
axb4 {[%clk 0:02:58.6]} 4... Nxb4 {[%clk 0:02:57.5]} 5. Nf3 {[%clk 0:02:55]}
5... d6 {[%clk 0:02:53.3]} 6. c3 {[%clk 0:02:54.8]} 6... Nc6 {[%clk 0:02:53.1]}
7. d4 {[%clk 0:02:55.2]} 7... g6 {[%clk 0:02:53.6]} 8. Bb5 {[%clk 0:02:49.5]}
8... Bd7 {[%clk 0:02:51.2]} 9. O-O {[%clk 0:02:48.7]} 9... Bg7 {[%clk
0:02:50.8]} 10. Nbd2 {[%clk 0:02:42.5]} 10... Nf6 {[%clk 0:02:49]} 11. c4 {[%clk
0:01:55.8]} 11... O-O {[%clk 0:02:45.4]} 12. d5 {[%clk 0:01:56]} 12... Nb8
{[%clk 0:02:34.8]} 13. Bb2 {[%clk 0:01:53]} 13... Bxb5 {[%clk 0:02:31.9]} 14.
cxb5 {[%clk 0:01:53.9]} 14... Nbd7 {[%clk 0:02:30.4]} 15. Bd4 {[%clk 0:01:41.6]}
15... b6 {[%clk 0:02:22.6]} 16. Qc2 {[%clk 0:01:38.9]} 16... Nc5 {[%clk
0:02:17]} 17. Qb2 {[%clk 0:01:21.3]} 17... Qd7 {[%clk 0:02:00.4]} 18. Ra3 {[%clk
0:01:20.6]} 18... Rfc8 {[%clk 0:01:55.4]} 19. Rfa1 {[%clk 0:01:20]} 19... Qg4
{[%clk 0:01:39.1]} 20. h3 {[%clk 0:01:17]} 20... Qf4 {[%clk 0:01:37.3]} 21. Be3
{[%clk 0:01:14.2]} 21... Nxd5 {[%clk 0:01:24.6]} 22. Bd4 {[%clk 0:00:40.6]}
22... Bxd4 {[%clk 0:01:01.9]} 23. Qxd4 {[%clk 0:00:41.5]} 23... Nf6 {[%clk
0:00:59.5]} 24. Rxa7 {[%clk 0:00:41.4]} 24... Rxa7 {[%clk 0:00:57.4]} 25. Rxa7
{[%clk 0:00:42.3]} 25... Nfxe4 {[%clk 0:00:57.6]} 26. Rxe7 {[%clk 0:00:37.5]}
26... Qf6 {[%clk 0:00:39.2]} 27. Rxe4 {[%clk 0:00:30.5]} 27... Nxe4 {[%clk
0:00:37.7]} 28. Qxe4 {[%clk 0:00:20.3]} 28... Rc1+ {[%clk 0:00:35.6]} 29. Kh2
{[%clk 0:00:20.6]} 29... Rc5 {[%clk 0:00:32.3]} 30. Qe8+ {[%clk 0:00:20.2]}
30... Kg7 {[%clk 0:00:32.2]} 31. Ne4 {[%clk 0:00:19.8]} 31... Qf4+ {[%clk
0:00:32.5]} 32. Ng3 {[%clk 0:00:18.7]} 32... Rc2 {[%clk 0:00:29]} 33. Qe1 {[%clk
0:00:11.8]} 33... h5 {[%clk 0:00:26.8]} 34. h4 {[%clk 0:00:12.1]} 34... g5
{[%clk 0:00:23.2]} 35. Nxg5 {[%clk 0:00:08.4]} 35... Qxh4+ {[%clk 0:00:23.3]}
36. Nh3 {[%clk 0:00:05.6]} 36... Qg4 {[%clk 0:00:22.5]} 37. Qa1+ {[%clk
0:00:05.9]} 37... f6 {[%clk 0:00:21.9]} 38. Qe1 {[%clk 0:00:03.9]} 38... Rc7
{[%clk 0:00:14.6]} 39. Ne4 {[%clk 0:00:03.9]} 39... Re7 {[%clk 0:00:13.6]} 40.
f3 {[%clk 0:00:04.4]} 40... Qg6 {[%clk 0:00:13.1]} 41. Qh4 {[%clk 0:00:04.3]}
41... d5 {[%clk 0:00:12.5]} 42. Nf4 {[%clk 0:00:04.4]} 42... Qf5 {[%clk
0:00:05.9]} 43. Nxh5+ {[%clk 0:00:05.3]} 43... Kf8 {[%clk 0:00:05.6]} 44. Nexf6
{[%clk 0:00:06.2]} 44... Rf7 {[%clk 0:00:04.9]} 45. Qg3 {[%clk 0:00:04.1]} 45...
Rxf6 {[%clk 0:00:04.1]} 46. Nxf6 {[%clk 0:00:02.4]} 46... Qxf6 {[%clk 0:00:05]}
47. Qb8+ {[%clk 0:00:02.7]} 47... Kf7 {[%clk 0:00:05.1]} 48. Qc7+ {[%clk
0:00:03.2]} 48... Kg6 {[%clk 0:00:05.1]} 49. Qg3+ {[%clk 0:00:03.1]} 49... Kf7
{[%clk 0:00:04.5]} 50. Kg1 {[%clk 0:00:04]} 50... Ke6 {[%clk 0:00:04.6]} 51.
Qg4+ {[%clk 0:00:03.8]} 51... Ke7 {[%clk 0:00:04.5]} 52. Qg8 {[%clk 0:00:03.8]}
52... Kd6 {[%clk 0:00:04.3]} 53. Qb8+ {[%clk 0:00:02.9]} 53... Kc5 {[%clk
0:00:04.6]} 54. Qe8 {[%clk 0:00:02.8]} 54... d4 {[%clk 0:00:04.3]} 55. Kf2
{[%clk 0:00:03]} 55... d3 {[%clk 0:00:03.8]} 56. Qh5+ {[%clk 0:00:02.9]} 56...
Kc4 {[%clk 0:00:03.5]} 0-1